bitfinex/quotes_SOLUSD_20250930
["timestamp","ask_amount","ask_price","bid_price","bid_amount"]
[1759232763715,2.21295056,207.22,207.17,13.59559401]
[1759232764020,2.21295056,207.22,207.16,0.67]
[1759232764021,1.43295056,207.2,207.16,0.67]
[1759232764198,1.43295056,207.19,207.16,0.67]
[1759232765011,1.43295056,207.2,207.16,0.67]
[1759232765212,36.07295056,207.21,207.17,5.4969537]
[1759232765426,1.43295056,207.21,207.17,4.8269537]
[1759232765616,33.96,207.2,207.18,0.67]
[1759232766333,33.96,207.2,207.17,4.8269537]
[1759232766639,33.96,207.2,207.17,5.4969537]
[1759232766810,1.43295056,207.21,207.17,5.4969537]
[1759232767125,33.94,207.2,207.17,5.4969537]
[1759232767717,1.43295056,207.2,207.17,4.8269537]
[1759232767921,35.37295056,207.2,207.17,4.8269537]
[1759232769136,33.94,207.2,207.17,5.4969537]
[1759232769336,33.94,207.2,207.18,4.82671817]
[1759232770312,1.43295056,207.21,207.18,4.82671817]
[1759232770513,33.92,207.2,207.18,4.82671817]
[1759232771738,2.11295056,207.21,207.18,4.82671817]
[1759232771935,33.92,207.2,207.18,4.82671817]
[1759232772246,0.1,207.22,207.21,34.39559401]
[1759232772619,0.1,207.22,207.21,35.08559401]
[1759232772950,0.1,207.22,207.21,39.91161592]
[1759232783022,0.1,207.22,207.21,41.84646004]
[1759232785929,40.94873957,207.22,206.99,20.0]
[1759232786126,1.43295056,207.1,207.0,34.56]
[1759232786343,0.69,207.11,207.01,0.66]
[1759232786524,1.43295056,207.12,207.03,20.8]
[1759232786848,1.43295056,207.12,207.07,20.8]
[1759232787047,1.43295056,207.1,207.07,20.8]
[1759232787348,1.43295056,207.1,207.08,20.8]
[1759232787542,2.12295056,207.1,207.08,20.8]
[1759232788350,0.69,207.09,207.07,4.8291742]
[1759232788644,1.43295056,207.09,207.08,20.8]
[1759232790254,1.43295056,207.09,207.08,25.62905157]
[1759232791051,1.43295056,207.09,207.08,20.8]
[1759232791347,2.12295056,207.09,207.08,20.8]
[1759232791857,1.43295056,207.09,207.08,25.62905157]
[1759232792150,1.43295056,207.1,207.08,25.62905157]
[1759232793354,0.69,207.11,207.08,25.62905157]
[1759232793554,1.43295056,207.1,207.08,25.62905157]
[1759232793761,0.1,207.22,207.09,62.90559401]
[1759232793938,0.1,207.22,207.19,13.59559401]
[1759232794142,0.1,207.22,207.21,34.39559401]
[1759232794342,0.1,207.22,207.21,39.22161592]
[1759232794542,0.1,207.22,207.21,79.40507207]
[1759232794952,0.1,207.22,207.21,82.99683315]
[1759232797046,0.1,207.22,207.21,47.63683315]
[1759232797247,0.1,207.22,207.21,22.01451605]
[1759232797993,0.1,207.22,207.21,42.81451605]
[1759232801668,2.25295056,207.22,207.2,4.82623682]
[1759232801846,0.72,207.21,207.2,25.62623682]
[1759232803879,0.1,207.22,207.21,20.8]
[1759232804056,0.77,207.22,207.21,20.8]
[1759232805375,0.77,207.22,207.21,25.62602191]
[1759232806477,2.20295056,207.22,207.21,25.62602191]
[1759232806686,2.20295056,207.22,207.21,20.8]
[1759232806865,0.77,207.22,207.21,20.8]
[1759232807183,2.20295056,207.22,207.21,20.8]
[1759232807864,2.20295056,207.22,207.19,4.82647051]
[1759232808057,2.20295056,207.22,207.17,13.59559401]
[1759232808058,1.43295056,207.2,207.17,13.59559401]
[1759232808257,2.10295056,207.2,207.18,4.82671722]
[1759232808473,0.1,207.22,207.19,14.25559401]
[1759232808776,0.1,207.22,207.2,4.82625482]
[1759232809079,0.1,207.22,207.2,5.48625482]
[1759232812279,0.1,207.22,207.2,4.82625482]
[1759232812456,2.20295056,207.22,207.2,4.82625482]
[1759232813457,0.77,207.22,207.19,4.82648776]
[1759232816584,0.67,207.21,207.19,4.82648776]
[1759232816754,0.67,207.21,207.2,20.8]
[1759232817182,0.67,207.21,207.17,4.82688109]
[1759232817377,0.67,207.21,207.16,18.42077743]
[1759232817378,2.10295056,207.2,207.16,4.82518342]
[1759232817572,0.67,207.19,207.18,20.8]
[1759232817769,2.10295056,207.19,207.18,20.8]
[1759232818181,1.43295056,207.19,207.18,20.8]
[1759232818372,2.24035236,207.19,207.18,20.8]
[1759232819078,2.24035236,207.2,207.18,20.8]
[1759232819388,2.91035236,207.2,207.18,20.8]
[1759232819681,2.91035236,207.2,207.18,25.62670485]
[1759232821489,2.24035236,207.2,207.18,25.62670485]
[1759232822187,2.91035236,207.2,207.18,25.62670485]
[1759232822387,2.24035236,207.2,207.18,25.62670485]
[1759232822580,2.91035236,207.2,207.18,25.62670485]
[1759232823185,2.91035236,207.19,207.14,12.06908695]
[1759232823400,2.91035236,207.19,207.15,0.66]
[1759232823563,2.24035236,207.19,207.15,0.66]
[1759232823765,0.1,207.22,207.21,34.39559401]
[1759232823966,0.1,207.22,207.21,35.05559401]
[1759232824877,1e-08,207.22,207.21,39.88161592]
[1759232825076,1e-08,207.22,207.21,49.37358288]
[1759232826684,1e-08,207.22,207.21,83.85358288]
[1759232828392,1e-08,207.22,207.21,85.78833341]
[1759232834996,0.1,207.31,207.26,13.59559401]
[1759232835198,0.1,207.31,207.26,47.99559401]
[1759232836197,0.1,207.31,207.27,4.82462488]
[1759232836587,0.1,207.31,207.27,16.88618709]
[1759232837495,0.1,207.31,207.28,34.38]
[1759232838202,0.1,207.31,207.29,4.82415939]
[1759232841994,0.1,207.31,207.3,34.34]
[1759232843316,0.1,207.31,207.3,39.16392667]
[1759232845111,0.1,207.31,207.3,39.88392667]
[1759232845692,0.1,207.31,207.3,52.75952068]
[1759232846298,0.1,207.31,207.3,52.71952068]
[1759232848816,0.1,207.31,207.3,53.43952068]
[1759232865235,0.81,207.39,207.34,13.59559401]
[1759232865433,0.81,207.39,207.35,34.16]
[1759232865740,0.71,207.38,207.35,34.16]
[1759232866241,0.71,207.37,207.36,13.59559401]
[1759232867214,0.81,207.39,207.37,4.8222983]
[1759232867434,0.1,207.39,207.38,34.18]
[1759232867739,0.1,207.39,207.37,39.0022983]
[1759232868250,0.71,207.38,207.37,39.0022983]
[1759232869239,0.71,207.38,207.37,52.59789231]
[1759232869449,0.1,207.39,207.37,52.59789231]
[1759232869744,0.81,207.39,207.37,52.59789231]
[1759232870629,0.1,207.39,207.37,52.59789231]
[1759232870830,0.1,207.39,207.38,13.59559401]
[1759232871229,0.1,207.39,207.38,18.41765978]
[1759232876346,0.1,207.39,207.38,19.08765978]
[1759232876840,0.1,207.39,207.38,18.41765978]
[1759232877044,0.1,207.39,207.38,19.08765978]
[1759232878238,0.1,207.39,207.38,18.41765978]
[1759232878438,0.1,207.39,207.38,52.51765978]
[1759232878614,0.1,207.39,207.38,53.18765978]
[1759232878811,0.1,207.39,207.38,52.51765978]
[1759232879016,0.1,207.39,207.38,18.41765978]
[1759232879339,0.1,207.39,207.38,52.53765978]
[1759232880220,0.1,207.39,207.38,53.20765978]
[1759232882843,0.1,207.43,207.42,13.59559401]
[1759232883022,0.1,207.43,207.42,47.69559401]
[1759232883214,0.1,207.43,207.42,48.36559401]
[1759232884143,0.1,207.43,207.42,53.18672986]
[1759232884742,0.71,207.5,207.46,34.39559401]
[1759232884922,0.71,207.5,207.48,13.59559401]
[1759232885122,0.71,207.5,207.49,47.71559401]
[1759232885334,1.43045567,207.52,207.5,13.59559401]
[1759232885945,0.71,207.55,207.51,34.1]
[1759232886244,2.14045567,207.54,207.52,13.59559401]
[1759232886450,0.71,207.53,207.52,47.73559401]
[1759232887121,0.1,207.6,207.52,52.55435248]
[1759232887320,0.1,207.6,207.53,34.14]
[1759232887321,1.43045567,207.55,207.53,34.14]
[1759232887534,1.43045567,207.55,207.54,34.14]
[1759232887758,1.43045567,207.55,207.54,13.59559401]
[1759232888089,2.14045567,207.55,207.54,13.59559401]
[1759232888251,0.71,207.57,207.55,13.59559401]
[1759232888553,1.43045567,207.56,207.55,13.59559401]
[1759232888744,1.43045567,207.57,207.55,13.59559401]
[1759232888938,2.14045567,207.57,207.55,13.59559401]
[1759232889144,0.71,207.57,207.55,47.75559401]
[1759232890051,0.71,207.59,207.55,47.75559401]
[1759232890345,0.1,207.6,207.59,13.59559401]
[1759232892236,0.77,207.6,207.59,13.59559401]
[1759232892549,0.77,207.6,207.58,13.59559401]
[1759232892748,0.67,207.59,207.58,13.59559401]
[1759232893765,0.67,207.59,207.56,47.75559401]
[1759232893931,0.67,207.59,207.56,52.57345991]
[1759232894657,0.67,207.59,207.56,47.75559401]
[1759232895627,0.1,207.6,207.56,47.75559401]
[1759232896033,0.77,207.6,207.56,48.41559401]
[1759232896232,0.1,207.6,207.58,13.59559401]
[1759232896530,0.1,207.6,207.58,47.75559401]
[1759232896751,0.1,207.6,207.59,0.68]
[1759232897257,0.1,207.6,207.59,14.27559401]
[1759232897960,0.1,207.6,207.59,19.09278173]
[1759232904051,0.1,207.6,207.59,14.27559401]
[1759232904256,0.1,207.6,207.59,19.09278173]
[1759232904632,0.1,207.6,207.59,48.37559401]
[1759232904854,0.1,207.6,207.59,47.69559401]
[1759232905170,0.1,207.6,207.59,52.49278173]
[1759232906168,0.1,207.6,207.59,53.17278173]
[1759232907866,0.1,207.6,207.59,48.35559401]
[1759232908458,0.1,207.6,207.59,53.17278173]
[1759232908779,0.1,207.6,207.59,48.35559401]
[1759232909843,0.1,207.6,207.59,13.59559401]
[1759232910244,0.1,207.6,207.59,47.63559401]
[1759232910452,0.1,207.6,207.59,48.31559401]
[1759232911752,0.1,207.6,207.59,47.63559401]
[1759232912359,0.1,207.6,207.59,48.31559401]
[1759232913280,0.1,207.6,207.59,47.63559401]
[1759232915674,0.1,207.6,207.59,47.61559401]
[1759232916775,0.1,207.6,207.59,53.11278173]
[1759232918058,0.1,207.6,207.59,52.43278173]
[1759232918753,0.1,207.6,207.59,53.11278173]
[1759232919675,0.1,207.6,207.59,48.29559401]
[1759232919968,0.1,207.6,207.59,53.11278173]
[1759232927356,0.1,207.6,207.59,53.05278173]
[1759232932892,0.1,207.6,207.59,52.37278173]
[1759232933062,0.1,207.6,207.59,53.09278173]
[1759232936873,0.1,207.6,207.59,19.13278173]
[1759232937077,0.1,207.6,207.59,53.09278173]
[1759232938097,0.1,207.6,207.59,52.37278173]
[1759232938283,0.1,207.6,207.59,53.09278173]
[1759232938576,2.25045567,207.6,207.59,13.59559401]
[1759232938771,7.06741135,207.6,207.59,13.59559401]
[1759232939200,7.06741135,207.6,207.55,33.96]
[1759232939494,2.15045567,207.59,207.56,13.59559401]
[1759232939978,0.72,207.58,207.56,13.59559401]
[1759232940178,0.72,207.57,207.56,13.59559401]
[1759232941579,0.72,207.57,207.55,13.59559401]
[1759232941779,1.43045567,207.58,207.55,13.59559401]
[1759232942098,0.72,207.57,207.55,13.59559401]
[1759232942295,0.72,207.56,207.55,13.59559401]
[1759232943197,2.23229513,207.58,207.55,13.59559401]
[1759232943402,2.95229513,207.58,207.55,18.41368221]
[1759232943598,0.72,207.57,207.55,13.59559401]
[1759232943783,0.72,207.56,207.55,13.59559401]
[1759232944785,2.95229513,207.56,207.5,13.59559401]
[1759232944986,2.23229513,207.54,207.52,13.59559401]
[1759232945304,0.72,207.54,207.52,13.59559401]
[1759232945503,2.23229513,207.55,207.52,13.59559401]
[1759232945683,20.9,207.6,207.55,20.8]
[1759232945879,0.1,207.6,207.59,39.21278173]
[1759232946108,0.1,207.6,207.59,73.93278173]
[1759232949108,0.1,207.6,207.59,76.16507686]
[1759232951808,0.1,207.6,207.59,42.16507686]
[1759232952109,0.1,207.6,207.59,76.36507686]
[1759232955316,0.1,207.6,207.59,42.16507686]
[1759232955508,0.1,207.6,207.59,76.32507686]
[1759232958192,0.1,207.6,207.59,42.16507686]
[1759232958392,0.1,207.6,207.59,76.30507686]
[1759232960719,0.1,207.6,207.59,74.07278173]
[1759232968805,0.1,207.6,207.59,73.35278173]
[1759232970101,0.1,207.6,207.59,74.05278173]
[1759232971703,0.1,207.6,207.59,39.21278173]
[1759232971903,0.1,207.6,207.59,73.27278173]
[1759232972127,0.1,207.6,207.59,73.97278173]
[1759232972426,0.1,207.6,207.59,73.27278173]
[1759232973732,0.1,207.6,207.59,73.97278173]
[1759232974033,0.1,207.6,207.59,73.27278173]
[1759232975520,0.1,207.6,207.59,73.97278173]
[1759232976429,0.1,207.6,207.59,73.27278173]
[1759232977830,0.1,207.6,207.59,73.97278173]
[1759232979133,0.1,207.6,207.59,73.21278173]
[1759232979331,0.1,207.6,207.59,52.41278173]
[1759232979513,0.76,207.6,207.59,18.41278173]
[1759232979830,0.1,207.6,207.59,52.41278173]
[1759232980031,0.76,207.6,207.59,52.41278173]
[1759232980203,0.76,207.6,207.59,13.59559401]
[1759232980410,2.99229513,207.6,207.59,47.59559401]
[1759232980716,2.99229513,207.6,207.59,13.59559401]
[1759232980717,7.80925081,207.6,207.59,13.59559401]
[1759232981826,2.99229513,207.6,207.59,13.59559401]
[1759232982425,0.1,207.6,207.59,13.59559401]
[1759232982745,0.1,207.6,207.59,19.09278173]
[1759232982909,0.1,207.6,207.59,18.41278173]
[1759232983630,0.1,207.6,207.59,19.09278173]
[1759232983829,0.1,207.6,207.59,53.11278173]
[1759232989139,0.1,207.6,207.59,19.09278173]
[1759232989347,0.1,207.6,207.59,53.07278173]
[1759232992425,0.1,207.6,207.59,55.30507686]
[1759232993624,0.1,207.6,207.59,21.32507686]
[1759232993835,0.1,207.6,207.59,55.30507686]
[1759232998548,0.1,207.6,207.59,53.07278173]
[1759232998746,0.1,207.6,207.59,19.09278173]
[1759232999047,0.1,207.6,207.59,53.07278173]
[1759233000743,0.1,207.6,207.59,39.21278173]
[1759233000951,0.1,207.6,207.59,52.37278173]
[1759233002152,0.1,207.6,207.59,18.41278173]
[1759233002334,0.1,207.6,207.59,52.37278173]
[1759233004722,0.1,207.6,207.59,18.41278173]
[1759233004926,0.1,207.6,207.59,52.37278173]
[1759233005152,0.82,207.6,207.59,13.59559401]
[1759233005361,0.82,207.6,207.59,47.55559401]
[1759233006045,2.24751257,207.6,207.59,13.59559401]
[1759233006348,0.82,207.6,207.59,13.59559401]
[1759233007064,2.24751257,207.6,207.59,13.59559401]
[1759233007654,7.06446825,207.6,207.59,13.59559401]
[1759233008230,2.24751257,207.6,207.59,13.59559401]
[1759233008456,7.06446825,207.6,207.59,13.59559401]
[1759233009832,7.06446825,207.6,207.56,13.59559401]
[1759233010033,1.42751257,207.57,207.56,13.59559401]
[1759233010748,2.14751257,207.57,207.54,13.59559401]
[1759233010954,2.14751257,207.56,207.54,47.57559401]
[1759233011145,4.91695568,207.6,207.51,0.68]
[1759233011146,0.72,207.55,207.51,13.59559401]
[1759233011342,2.14751257,207.54,207.51,13.59559401]
[1759233011559,0.72,207.53,207.51,13.59559401]
[1759233011735,2.14751257,207.52,207.5,13.59559401]
[1759233011939,2.14751257,207.51,207.5,13.59559401]
[1759233012262,2.14751257,207.51,207.47,4.81976904]
[1759233012263,2.14751257,207.51,207.48,13.59559401]
[1759233012444,4.81865804,207.53,207.44,13.59559401]
[1759233012445,1.42751257,207.49,207.44,13.59559401]
[1759233012650,4.81865804,207.53,207.45,33.98]
[1759233012651,1.42751257,207.47,207.45,33.98]
[1759233012858,2.12751257,207.47,207.45,33.98]
[1759233013054,2.12751257,207.47,207.46,13.59559401]
[1759233013251,2.12751257,207.47,207.44,33.98]
[1759233013744,2.12751257,207.46,207.45,13.59559401]
[1759233013951,6.94782663,207.46,207.42,13.59559401]
[1759233014273,0.7,207.48,207.44,13.59559401]
[1759233014438,2.12751257,207.48,207.44,13.59559401]
[1759233014639,0.7,207.5,207.45,0.66]
[1759233014852,1.42751257,207.48,207.43,14.25559401]
[1759233015157,1.42751257,207.46,207.44,13.59559401]
[1759233015457,2.12751257,207.45,207.44,13.59559401]
[1759233016663,3.23343001,207.53,207.44,0.68]
[1759233016664,0.7,207.48,207.44,0.68]
[1759233016964,1.42751257,207.48,207.44,0.68]
[1759233017461,2.12751257,207.48,207.44,0.68]
[1759233017663,0.7,207.48,207.44,0.68]
[1759233017839,0.7,207.48,207.46,13.59559401]
[1759233017840,1.42751257,207.48,207.46,13.59559401]
[1759233018363,2.12751257,207.53,207.47,0.68]
[1759233018572,1.42751257,207.52,207.47,0.68]
[1759233019157,1.42751257,207.52,207.45,13.59559401]
[1759233019158,1.42751257,207.49,207.45,13.59559401]
[1759233019458,1.42751257,207.48,207.45,47.57559401]
[1759233019860,1.42751257,207.48,207.45,53.07588855]
[1759233020466,2.12751257,207.49,207.45,53.07588855]
[1759233020848,1.42751257,207.48,207.45,53.07588855]
[1759233021766,1.42751257,207.48,207.45,52.39588855]
[1759233022071,1.42751257,207.48,207.46,0.68]
[1759233022767,1.42751257,207.47,207.45,18.41588855]
[1759233022974,1.42751257,207.47,207.45,13.59559401]
[1759233025757,0.7,207.49,207.45,14.27559401]
[1759233025965,1.42751257,207.47,207.45,19.09598162]
[1759233026370,1.42751257,207.48,207.45,18.41598162]
[1759233026564,1.42751257,207.49,207.46,0.68]
[1759233027175,1.42751257,207.49,207.45,18.41598162]
[1759233027361,1.42751257,207.49,207.47,0.68]
[1759233027760,1.42751257,207.49,207.45,19.09598162]
[1759233028084,2.12751257,207.49,207.45,19.09598162]
[1759233028376,1.42751257,207.48,207.47,13.59559401]
[1759233028954,1.42751257,207.48,207.45,4.82038761]
[1759233029274,1.42751257,207.48,207.46,13.59559401]
[1759233029481,1.42751257,207.49,207.46,13.59559401]
[1759233030152,1.42751257,207.49,207.46,14.27559401]
[1759233030978,1.42751257,207.48,207.46,13.59559401]
[1759233032593,0.7,207.49,207.46,13.59559401]
[1759233032770,1.42751257,207.48,207.46,13.59559401]
[1759233033584,1.42751257,207.47,207.46,13.59559401]
[1759233034087,1.42751257,207.47,207.44,18.4162241]
[1759233034380,1.42751257,207.47,207.44,14.27559401]
[1759233034581,1.42751257,207.45,207.43,13.59559401]
[1759233034786,1.42751257,207.46,207.44,0.68]
[1759233035770,0.7,207.48,207.44,0.68]
[1759233035985,1.42751257,207.46,207.44,0.68]
[1759233036182,0.7,207.48,207.44,0.68]
[1759233036388,1.42751257,207.46,207.44,0.68]
[1759233037182,1.42751257,207.47,207.44,0.68]
[1759233038219,1.42751257,207.46,207.44,0.68]
[1759233038686,1.42751257,207.46,207.43,13.59559401]
[1759233038864,2.12751257,207.46,207.43,13.59559401]
[1759233039061,4.81978843,207.48,207.44,0.68]
[1759233039264,1.42751257,207.47,207.45,0.68]
[1759233039467,85.11953449,207.49,207.45,0.68]
[1759233039690,1.42751257,207.47,207.45,0.68]
[1759233039867,1.42751257,207.46,207.43,19.09646207]
[1759233040183,1.42751257,207.46,207.43,14.27559401]
[1759233040887,1.42751257,207.46,207.43,13.59559401]
[1759233041273,1.42751257,207.46,207.44,0.68]
[1759233041780,1.42751257,207.46,207.43,13.59559401]
[1759233041961,1.42751257,207.46,207.43,14.27559401]
[1759233042166,1.42751257,207.46,207.43,13.59559401]
[1759233042367,1.42751257,207.46,207.44,0.7]
[1759233043485,1.42751257,207.46,207.43,13.59559401]
[1759233043691,1.42751257,207.46,207.43,14.29559401]
[1759233044477,1.42751257,207.46,207.43,0.7]
[1759233044478,6.24771933,207.46,207.43,0.7]
[1759233044790,6.24771933,207.46,207.4,13.59559401]
[1759233044791,1.42751257,207.44,207.4,13.59559401]
[1759233045001,1.42751257,207.42,207.4,14.29559401]
[1759233045291,1.42751257,207.44,207.42,13.59559401]
[1759233045791,1.42751257,207.43,207.42,13.59559401]
[1759233046292,81.72751257,207.47,207.42,0.7]
[1759233046464,80.3,207.47,207.43,13.59559401]
[1759233046664,80.3,207.47,207.45,13.59559401]
[1759233046874,1.42751257,207.49,207.45,14.29559401]
[1759233047092,5.50928352,207.5,207.45,14.29559401]
[1759233047395,1.42751257,207.48,207.45,14.29559401]
[1759233047975,1.42751257,207.48,207.46,0.7]
[1759233048872,5.50928352,207.5,207.46,0.7]
[1759233049084,1.42751257,207.48,207.46,0.7]
[1759233049286,1.42751257,207.48,207.45,18.41597432]
[1759233049588,1.42751257,207.48,207.45,19.11597432]
[1759233049790,1.42751257,207.46,207.42,34.7]
[1759233050088,1.42751257,207.45,207.43,0.7]
[1759233050788,1.42751257,207.47,207.45,13.59559401]
[1759233050992,81.72751257,207.49,207.45,18.4158253]
[1759233051173,81.72751257,207.49,207.46,0.7]
[1759233051603,1.42751257,207.48,207.46,0.7]
[1759233053089,80.3,207.49,207.46,0.7]
[1759233053090,80.3,207.49,207.47,13.59559401]
[1759233053307,1.42751257,207.48,207.47,13.59559401]
[1759233054279,1.42751257,207.48,207.47,0.7]
[1759233054475,1.42751257,207.48,207.46,13.59559401]
[1759233054803,80.3,207.49,207.47,0.7]
[1759233055010,81.72751257,207.49,207.47,0.7]
[1759233055181,4.67426653,207.48,207.47,0.7]
[1759233055586,1.42751257,207.48,207.47,0.7]
[1759233055787,4.6742671,207.48,207.47,0.7]
[1759233055983,3.24675453,207.48,207.47,0.7]
[1759233056195,80.3,207.49,207.48,13.59559401]
[1759233056389,3.24928827,207.49,207.48,14.29559401]
[1759233057081,3.24928827,207.5,207.48,14.29559401]
[1759233057281,1.42751257,207.51,207.48,18.4152091]
[1759233057612,3.2514188,207.5,207.48,18.4152091]
[1759233057804,1.42751257,207.51,207.49,0.7]
[1759233058006,3.2514188,207.5,207.49,13.59559401]
[1759233058612,3.25239998,207.5,207.49,14.29559401]
[1759233059216,4.67961971,207.53,207.5,18.4147455]
[1759233059376,3.25210714,207.52,207.51,14.29559401]
[1759233061102,80.3,207.54,207.52,13.59559401]
[1759233061282,81.72751257,207.54,207.52,18.41440438]
[1759233061796,81.72751257,207.54,207.53,0.7]
[1759233061974,84.97892155,207.54,207.53,0.7]
[1759233062177,81.72751257,207.54,207.53,0.7]
[1759233062405,82.53286723,207.54,207.52,18.41440438]
[1759233062593,82.53286723,207.54,207.52,19.11440438]
[1759233062778,2.23286723,207.53,207.52,19.11440438]
[1759233063801,80.3,207.54,207.52,14.29559401]
[1759233063984,2.23286723,207.53,207.52,13.59559401]
[1759233064491,80.3,207.54,207.51,5.5190155]
[1759233064801,2.23286723,207.53,207.51,5.5190155]
[1759233065376,80.3,207.54,207.51,5.5190155]
[1759233065806,2.23286723,207.53,207.51,5.5190155]
[1759233067791,2.92286723,207.52,207.48,13.59559401]
[1759233068105,2.23286723,207.49,207.48,13.59559401]
[1759233068284,2.23286723,207.49,207.48,14.29559401]
[1759233069210,2.23286723,207.49,207.48,13.59559401]
[1759233072906,2.23286723,207.49,207.48,0.72]
[1759233073091,42.04519624,207.52,207.48,0.72]
[1759233073290,2.23286723,207.49,207.48,0.72]
[1759233073697,38.7989154,207.52,207.49,13.59559401]
[1759233073902,2.23286723,207.5,207.49,13.59559401]
[1759233075208,34.66,207.52,207.49,13.59559401]
[1759233075409,2.23286723,207.5,207.49,13.59559401]
[1759233080143,2.23286723,207.5,207.49,0.71]
[1759233080722,2.23286723,207.5,207.47,0.71]
[1759233080926,80.95,207.53,207.48,0.71]
[1759233081223,2.23286723,207.5,207.48,0.71]
[1759233082312,2.23286723,207.5,207.48,5.52968048]
[1759233082903,2.23286723,207.5,207.49,0.71]
[1759233084221,2.23286723,207.5,207.47,4.81997397]
[1759233084409,2.23286723,207.49,207.48,0.71]
[1759233085522,0.65,207.52,207.48,5.52974166]
[1759233085702,2.23286723,207.49,207.48,5.52974166]
[1759233086529,2.23286723,207.49,207.48,0.71]
[1759233086717,2.23286723,207.49,207.46,19.12559739]
[1759233086923,2.23286723,207.48,207.46,14.30559401]
[1759233087218,2.23286723,207.47,207.46,14.30559401]
[1759233087528,4.8192771,207.5,207.47,13.59559401]
[1759233087832,2.23286723,207.48,207.47,13.59559401]
[1759233088004,2.23286723,207.48,207.47,14.30559401]
[1759233088204,4.8192771,207.5,207.47,13.59559401]
[1759233088519,2.23286723,207.48,207.47,13.59559401]
[1759233089505,5.4692771,207.5,207.47,13.59559401]
[1759233089704,2.23286723,207.48,207.47,13.59559401]
[1759233089914,2.23286723,207.48,207.47,14.30559401]
[1759233092821,2.88286723,207.48,207.45,13.59559401]
[1759233093029,2.23286723,207.46,207.45,13.59559401]
[1759233093217,2.23286723,207.46,207.43,0.71]
[1759233093218,2.23286723,207.46,207.44,13.59559401]
[1759233093806,2.23286723,207.45,207.44,13.59559401]
[1759233094811,2.23286723,207.45,207.44,14.30559401]
[1759233096111,2.23286723,207.45,207.44,13.59559401]
[1759233097130,7.70330588,207.45,207.41,13.59559401]
[1759233097314,2.23286723,207.42,207.41,13.59559401]
[1759233098620,7.05400308,207.42,207.38,0.71]
[1759233098818,2.23286723,207.4,207.39,13.59559401]
[1759233099121,4.82113585,207.42,207.39,14.30559401]
[1759233099422,2.23286723,207.4,207.39,14.30559401]
[1759233100033,4.82113585,207.42,207.39,14.30559401]
[1759233100215,2.23286723,207.4,207.39,14.30559401]
[1759233100409,12.05110892,207.45,207.39,14.30559401]
[1759233100410,4.05844317,207.51,207.43,13.59559401]
[1759233100622,2.88286723,207.55,207.48,20.8]
[1759233100809,2.23286723,207.53,207.49,13.59559401]
[1759233101014,0.65,207.52,207.49,13.59559401]
[1759233101234,0.65,207.52,207.51,13.59559401]
[1759233101436,0.65,207.52,207.51,17.17510107]
[1759233101608,2.23286723,207.53,207.51,17.17510107]
[1759233101813,2.23286723,207.53,207.52,3.57950706]
[1759233102414,2.92286723,207.53,207.51,13.59559401]
[1759233103035,0.69,207.53,207.51,13.59559401]
[1759233103333,0.69,207.53,207.51,18.4146315]
[1759233104936,0.69,207.52,207.51,13.59559401]
[1759233105132,0.69,207.52,207.49,4.81947104]
[1759233105334,0.69,207.51,207.49,4.81947104]
[1759233106629,0.69,207.5,207.49,4.81947104]
[1759233106827,0.69,207.5,207.46,13.59559401]
[1759233107231,0.69,207.5,207.46,18.41345423]
[1759233107635,0.69,207.5,207.46,35.28417629]
[1759233109534,0.69,207.5,207.46,35.83417629]
[1759233110743,0.69,207.49,207.46,18.41580031]
[1759233110945,0.69,207.48,207.46,18.41580031]
[1759233111124,39.29837483,207.54,207.46,18.41580031]
[1759233111449,2.23286723,207.52,207.46,18.41580031]
[1759233111647,0.69,207.51,207.46,18.41580031]
[1759233111849,0.69,207.5,207.44,18.41610493]
[1759233113449,7.05175208,207.52,207.44,18.41610493]
[1759233113632,0.69,207.49,207.44,18.41610493]
[1759233113826,0.69,207.48,207.44,18.41610493]
[1759233114231,0.69,207.47,207.44,18.41610493]
[1759233114423,0.69,207.46,207.42,4.81888485]
[1759233114651,2.92286723,207.45,207.4,13.59559401]